bitfinex/quotes_ETHUSD_20250807
["timestamp","ask_amount","ask_price","bid_price","bid_amount"]
[1754530818361,4.342,3703.0,3702.8,2.70063727]
[1754530818663,4.342,3703.0,3702.9,2.70058602]
[1754530819957,4.342,3703.0,3702.7,2.7006673]
[1754530820664,4.342,3703.0,3702.6,3.19020011]
[1754530820865,3.0,3702.9,3702.6,2.70080011]
[1754530821033,3.1352,3702.9,3702.6,2.70080011]
[1754530821567,3.1352,3702.9,3702.4,0.1352]
[1754530821568,3.1352,3702.9,3702.7,2.70073176]
[1754530822065,3.1352,3702.9,3702.8,3.16715896]
[1754530822066,0.1352,3702.9,3702.8,3.16715896]
[1754530822257,4.34,3702.9,3702.8,3.62815896]
[1754530823258,0.1352,3703.1,3703.0,2.70051309]
[1754530823459,4.4742,3703.1,3703.0,2.70051309]
[1754530823773,4.4742,3703.1,3703.0,3.16701309]
[1754530823937,4.339,3703.1,3703.0,4.2701491]
[1754530824730,4.339,3703.1,3703.0,3.8091491]
[1754530824947,4.339,3703.1,3703.0,2.70051309]
[1754530825355,4.339,3703.1,3702.8,0.1352]
[1754530825557,0.9582,3703.0,3702.7,2.83586791]
[1754530825961,0.9582,3703.0,3702.6,2.70078872]
[1754530826155,1.0934,3703.0,3702.6,2.70078872]
[1754530826567,5.4304,3703.0,3702.6,2.70078872]
[1754530827846,4.9354,3703.0,3702.6,2.70078872]
[1754530828050,4.9354,3703.0,3702.5,2.70081791]
[1754530828051,0.9582,3702.9,3702.5,2.70081791]
[1754530829272,0.9582,3702.9,3702.4,0.1352]
[1754530829273,0.9582,3702.8,3702.4,0.1352]
[1754530829567,4.336,3702.7,3702.4,0.1352]
[1754530829976,4.336,3702.7,3702.3,0.001]
[1754530829977,0.6302,3702.6,3702.3,0.001]
[1754530830934,0.9582,3702.5,3702.3,0.001]
[1754530831469,11.12935073,3702.4,3702.3,0.001]
[1754530832177,8.4284,3702.4,3702.3,0.001]
[1754530833883,11.12935073,3702.4,3702.3,0.001]
[1754530834582,11.67935073,3702.4,3702.3,0.001]
[1754530835754,8.67935073,3702.4,3702.3,0.001]
[1754530835959,11.19417111,3702.4,3702.3,0.001]
[1754530837950,11.19417111,3702.4,3701.9,0.001]
[1754530837951,2.70124257,3702.0,3701.9,0.001]
[1754530838288,6.25138851,3701.8,3701.7,1e-08]
[1754530838446,0.55,3701.3,3701.1,0.001]
[1754530838646,3.25197243,3701.0,3699.6,3.16947975]
[1754530838881,7.71917243,3701.0,3699.6,0.4665]
[1754530839082,3.25226449,3700.6,3699.5,0.1352]
[1754530839282,3.25226449,3700.6,3698.7,0.19942749]
[1754530839283,25.0829419,3700.6,3698.8,2.70351931]
[1754530839586,26.0411419,3700.6,3699.1,0.4665]
[1754530840688,26.17516242,3700.6,3699.1,0.4665]
[1754530841198,6.98290734,3700.6,3698.7,2.70358692]
[1754530841398,12.27310734,3700.6,3699.8,0.4665]
[1754530841568,0.1352,3700.6,3699.3,0.02703214]
[1754530841755,0.1352,3700.6,3700.5,0.4675]
[1754530841951,4.4662,3700.6,3700.5,0.4675]
[1754530842357,0.1352,3700.6,3700.5,0.4675]
[1754530842580,4.4662,3700.6,3700.5,0.4675]
[1754530842857,0.1352,3700.6,3700.5,0.4675]
[1754530843054,4.4662,3700.6,3700.5,0.001]
[1754530843574,22.30056123,3700.6,3700.5,0.001]
[1754530843778,25.49782572,3700.6,3700.5,0.001]
[1754530844088,26.04782572,3700.6,3700.5,0.001]
[1754530844387,26.51102572,3700.6,3700.5,0.001]
[1754530844768,12.74299116,3700.6,3700.5,0.001]
[1754530845585,11.78479116,3700.6,3700.5,0.001]
[1754530845787,12.74299116,3700.6,3700.5,0.001]
[1754530846090,29.97865104,3700.6,3700.5,0.001]
[1754530846789,3.55,3699.7,3698.6,0.4665]
[1754530846962,0.1352,3698.7,3698.6,0.4665]
[1754530847389,0.1352,3698.7,3698.2,0.1352]
[1754530847390,2.83885856,3698.7,3698.2,0.1352]
[1754530847594,2.7038571,3698.5,3698.2,0.1352]
[1754530847792,4.33,3698.4,3698.2,0.1352]
[1754530848099,0.1352,3698.3,3698.2,0.4665]
[1754530849196,0.1352,3698.3,3697.9,0.461]
[1754530849197,0.1352,3698.3,3697.9,0.4665]
[1754530849495,4.33,3698.4,3698.2,0.4665]
[1754530849700,4.33,3698.4,3698.1,2.70408641]
[1754530849900,0.9381,3699.7,3698.3,0.4665]
[1754530850086,0.1352,3698.7,3698.3,0.4665]
[1754530850268,3.0,3699.5,3698.0,0.4511]
[1754530850269,0.1352,3698.5,3698.0,0.4511]
[1754530850598,0.1352,3698.1,3698.0,2.7041521]
[1754530850996,0.1352,3698.1,3698.0,3.5854521]
[1754530851202,3.0,3699.2,3698.0,3.5854521]
[1754530851203,3.55,3699.5,3698.6,2.70369621]
[1754530851371,0.55,3699.3,3698.4,0.4302]
[1754530851567,3.0,3699.1,3698.8,2.70354262]
[1754530851766,3.0,3699.1,3698.6,2.70370874]
[1754530851767,7.329,3699.0,3698.9,3.15460474]
[1754530851972,7.329,3699.0,3698.9,0.4511]
[1754530852692,0.4852,3699.9,3698.9,0.4511]
[1754530852873,3.0,3699.7,3698.9,0.8813]
[1754530853074,1.05171057,3699.6,3699.0,0.4511]
[1754530853273,3.0,3699.4,3699.1,2.70333825]
[1754530853474,3.0,3699.4,3699.0,2.70342792]
[1754530853672,3.0,3699.4,3699.1,0.4511]
[1754530855310,3.0,3699.4,3698.2,2.70400804]
[1754530855311,2.09009352,3700.2,3699.2,0.8813]
[1754530855509,2.09009352,3700.2,3699.3,0.8813]
[1754530855678,7.23971096,3700.1,3699.2,2.70328339]
[1754530855879,3.9381,3700.0,3699.3,2.70318775]
[1754530856088,3.9381,3700.0,3698.5,7.03173905]
[1754530856089,4.328,3699.9,3699.7,2.70286648]
[1754530856408,4.328,3699.9,3699.8,0.4511]
[1754530856585,4.328,3699.9,3699.6,2.70299081]
[1754530856785,4.96980935,3699.9,3699.3,0.4511]
[1754530857098,4.328,3699.8,3699.5,2.70306558]
[1754530857299,0.64180935,3699.9,3699.6,0.8813]
[1754530857300,4.328,3699.9,3699.6,0.8813]
[1754530857608,4.328,3699.9,3699.7,0.4511]
[1754530857807,4.328,3699.9,3699.7,3.15400634]
[1754530857979,4.328,3699.9,3699.7,0.4511]
[1754530858174,4.328,3699.9,3699.7,3.15399864]
[1754530859039,4.328,3699.9,3699.7,0.4511]
[1754530859811,5.2661,3699.9,3699.4,0.4511]
[1754530860010,4.46471,3699.8,3699.2,2.70327991]
[1754530860383,3.52661,3699.8,3699.2,2.70327991]
[1754530860587,4.01181,3699.8,3698.9,0.4511]
[1754530861181,0.1352,3699.4,3698.9,0.1352]
[1754530861381,0.9381,3699.3,3698.6,2.83892573]
[1754530861591,0.1352,3699.1,3698.6,0.1352]
[1754530861806,0.1352,3698.7,3698.4,2.70387071]
[1754530862000,0.1352,3698.7,3698.5,2.70378998]
[1754530862203,0.1352,3698.7,3698.2,2.83921817]
[1754530862406,0.1352,3698.7,3698.1,0.001]
[1754530862407,0.1352,3698.4,3698.1,2.70508583]
[1754530862805,0.1352,3698.4,3698.1,3.15618583]
[1754530863116,0.4529,3698.6,3698.1,0.001]
[1754530863412,0.1352,3698.2,3698.1,0.001]
[1754530865616,4.32731817,3698.2,3698.1,0.001]
[1754530865813,4.6233,3698.2,3698.1,0.001]
[1754530866216,1.6233,3698.2,3698.1,0.001]
[1754530866723,0.1352,3698.2,3698.1,3.15619129]
[1754530867517,7.325,3698.6,3698.2,2.70397713]
[1754530867722,0.1352,3698.4,3698.3,3.58524505]
[1754530867922,0.1352,3698.4,3698.3,3.13414505]
[1754530868620,0.1352,3698.4,3698.3,3.58524505]
[1754530868796,4.324,3698.8,3698.6,2.70368327]
[1754530868985,0.1352,3698.8,3698.5,2.70375303]
[1754530869905,0.4852,3698.7,3698.2,0.4511]
[1754530870221,0.1352,3698.5,3698.4,2.70387194]
[1754530870624,0.1352,3698.5,3698.3,2.70394403]
[1754530870922,0.1352,3698.5,3698.2,2.70395661]
[1754530871226,3.4852,3698.8,3698.1,2.70508484]
[1754530871227,0.55,3698.7,3698.1,2.70508484]
[1754530871523,6.495,3700.3,3698.2,0.4511]
[1754530871823,6.495,3700.3,3698.6,2.70371282]
[1754530871824,3.0,3699.3,3698.6,2.70371282]
[1754530871986,3.0,3699.1,3698.4,2.70385696]
[1754530872193,3.0,3699.1,3698.7,2.70363204]
[1754530872389,0.1352,3698.9,3698.3,0.5863]
[1754530872602,0.1352,3698.9,3698.3,3.29024156]
[1754530872811,0.1352,3698.9,3698.6,2.70366618]
[1754530873011,0.1352,3698.9,3698.4,2.70387194]
[1754530873210,0.1352,3698.9,3698.4,3.15497194]
[1754530873728,0.1352,3698.9,3698.1,0.001]
[1754530873729,0.1352,3698.5,3698.1,0.001]
[1754530873928,0.1352,3698.5,3698.1,2.70508064]
[1754530874228,0.1352,3698.5,3698.2,3.15511817]
[1754530874430,0.1352,3698.5,3698.4,2.70387194]
[1754530876732,0.1352,3698.5,3698.3,2.70393322]
[1754530876897,0.1352,3698.5,3698.2,3.15510833]
[1754530877226,0.1352,3698.5,3698.1,2.70508952]
[1754530877427,0.9381,3698.4,3698.1,2.70508952]
[1754530877729,0.4852,3698.3,3698.1,2.70508482]
[1754530877937,0.4529,3698.4,3698.1,2.70508482]
[1754530878235,0.1352,3698.5,3698.1,0.001]
[1754530878435,1.0733,3698.3,3698.1,0.001]
[1754530878732,0.55,3698.2,3698.1,0.001]
[1754530878917,4.01609304,3698.4,3698.1,0.001]
[1754530878918,1.01609304,3698.4,3698.1,0.001]
[1754530879124,0.1352,3698.2,3698.1,0.001]
[1754530879453,0.1352,3698.2,3698.1,2.70509129]
[1754530879618,0.1352,3698.4,3698.2,2.70399449]
[1754530879931,0.1352,3698.4,3698.1,0.001]
[1754530880136,0.4698,3698.3,3698.1,0.001]
[1754530880431,1.46224,3698.3,3698.1,0.001]
[1754530880634,0.1352,3698.2,3698.1,0.001]
[1754530881616,0.1352,3698.2,3698.1,3.18749129]
[1754530882020,0.1352,3698.2,3698.1,0.4834]
[1754530882332,0.1352,3698.2,3698.1,0.001]
[1754530883132,8.15145817,3698.2,3698.1,0.001]
[1754530883336,5.44744,3698.2,3698.1,0.001]
[1754530883502,8.15145817,3698.2,3698.1,0.001]
[1754530884301,5.44744,3698.2,3698.1,0.001]
[1754530884706,8.15145817,3698.2,3698.1,0.001]
[1754530885029,5.44744,3698.2,3698.1,0.001]
[1754530885427,8.15145817,3698.2,3698.1,0.001]
[1754530885641,5.44744,3698.2,3698.1,0.001]
[1754530886320,3.97324,3698.2,3698.1,0.001]
[1754530886644,7.4542,3698.2,3698.1,0.001]
[1754530887216,7.4542,3698.2,3698.1,2.70509129]
[1754530887416,7.4542,3698.2,3698.1,0.001]
[1754530888450,3.1352,3698.2,3698.1,0.001]
[1754530888748,4.0594,3698.2,3698.1,0.001]
[1754530888954,5.44724,3698.2,3698.1,0.001]
[1754530889355,8.15125817,3698.2,3698.1,0.001]
[1754530889719,5.44724,3698.2,3698.1,0.001]
[1754530890239,8.15125817,3698.2,3698.1,0.001]
[1754530890445,5.44724,3698.2,3698.1,0.001]
[1754530890851,8.15125817,3698.2,3698.1,0.001]
[1754530891550,5.44724,3698.2,3698.1,0.001]
[1754530891732,9.76524,3698.2,3698.1,0.001]
[1754530892550,12.46925817,3698.2,3698.1,0.001]
[1754530895441,12.46925817,3698.2,3697.7,0.001]
[1754530895442,0.55,3697.8,3697.7,0.001]
[1754530895634,28.4873943,3697.8,3697.7,0.001]
[1754530895835,29.4115943,3697.8,3697.7,0.001]
[1754530896424,29.55062799,3697.8,3697.7,0.001]
[1754530897336,29.55062799,3697.8,3697.7,1e-08]
[1754530897337,29.68482799,3697.8,3697.7,1e-08]
[1754530898024,29.5457943,3697.8,3697.7,1e-08]
[1754530898226,6.51993442,3697.8,3697.7,1e-08]
[1754530898426,10.83593442,3697.8,3697.7,1e-08]
[1754530898937,11.30573442,3697.8,3697.7,1e-08]
[1754530899138,11.76013442,3697.8,3697.7,1e-08]
[1754530899340,12.31013442,3697.8,3697.7,1e-08]
[1754530902368,19.49013442,3697.8,3697.7,1e-08]
[1754530902670,18.56493442,3697.8,3697.7,1e-08]
[1754530903225,15.86062375,3697.8,3697.7,1e-08]
[1754530903429,14.24993442,3697.8,3697.7,1e-08]
[1754530903661,18.56493442,3697.8,3697.7,1e-08]
[1754530904371,15.86062375,3697.8,3697.7,1e-08]
[1754530904878,18.56493442,3697.8,3697.7,1e-08]
[1754530905661,14.24993442,3697.8,3697.7,1e-08]
[1754530905862,18.56393442,3697.8,3697.7,1e-08]
[1754530906365,15.85962375,3697.8,3697.7,1e-08]
[1754530906531,18.56393442,3697.8,3697.7,1e-08]
[1754530908072,19.48813442,3697.8,3697.7,1e-08]
[1754530908576,18.56393442,3697.8,3697.7,1e-08]
[1754530908872,32.3734764,3697.8,3697.7,1e-08]
[1754530909271,33.2976764,3697.8,3697.7,1e-08]
[1754530911363,28.9836764,3697.8,3697.7,1e-08]
[1754530911673,33.2966764,3697.8,3697.7,1e-08]
[1754530914649,31.8214764,3697.8,3697.7,1e-08]
[1754530914857,27.5094764,3697.8,3697.7,1e-08]
[1754530915058,31.8214764,3697.8,3697.7,1e-08]
[1754530915378,32.3714764,3697.8,3697.7,1e-08]
[1754530915586,32.3714764,3697.8,3697.7,0.45870001]
[1754530915949,33.3101764,3697.8,3697.7,1e-08]
[1754530923875,33.3071764,3697.8,3697.7,1e-08]
[1754530925699,6.2543838,3697.7,3697.4,0.001]
[1754530926013,20.19927206,3697.5,3697.4,0.001]
[1754530926484,21.13797206,3697.5,3697.4,0.001]
[1754530926997,21.03797206,3697.5,3697.4,0.001]
[1754530930880,28.21797206,3697.5,3697.4,0.001]
[1754530931210,35.25363392,3697.5,3697.4,0.001]
[1754530932083,35.58846989,3697.5,3697.4,0.001]
[1754530932476,6.25460323,3697.4,3697.3,0.001]
[1754530932700,7.19330323,3697.4,3697.3,0.001]
[1754530934778,6.25460323,3697.4,3697.3,0.001]
[1754530935019,8.98326509,3697.4,3697.3,0.001]
[1754530935520,10.14480323,3697.4,3697.3,0.9259]
[1754530935919,10.14480323,3697.4,3697.3,0.001]
[1754530936222,10.69480323,3697.4,3697.3,0.001]
[1754530936786,10.69480323,3697.4,3697.0,0.001]
[1754530936787,3.25482269,3697.1,3697.0,0.001]
[1754530937019,24.50456467,3697.1,3697.0,0.001]
[1754530937223,25.44326467,3697.1,3697.0,0.001]
[1754530937399,24.50456467,3697.1,3697.0,0.001]
[1754530937596,24.50456467,3697.1,3697.0,0.4597]
[1754530937814,27.23322653,3697.1,3697.0,0.4597]
[1754530938017,27.23322653,3697.1,3697.0,0.001]
[1754530938791,27.23322653,3697.1,3697.0,0.4597]
[1754530938997,22.92822653,3697.1,3697.0,0.4597]
[1754530939194,27.23222653,3697.1,3697.0,0.4597]
[1754530939419,27.23222653,3697.1,3697.0,0.001]
[1754530941728,22.92822653,3697.1,3697.0,0.001]
[1754530941933,27.23122653,3697.1,3697.0,0.001]
[1754530943009,28.13152653,3697.1,3697.0,0.001]
[1754530943221,27.23122653,3697.1,3697.0,0.001]
[1754530945928,28.13152653,3697.1,3697.0,0.001]
[1754530948339,35.31152653,3697.1,3697.0,0.001]
[1754530949545,28.13152653,3697.1,3697.0,0.001]
[1754530949909,22.92822653,3697.1,3697.0,0.001]
[1754530950113,27.22822653,3697.1,3697.0,0.001]
[1754530950651,28.12852653,3697.1,3697.0,0.001]
[1754530951646,28.12852653,3697.1,3697.0,1e-08]
[1754530952848,8.56868455,3697.1,3697.0,1e-08]
[1754530953061,10.13902269,3697.1,3697.0,0.49440001]
[1754530953258,10.68902269,3697.1,3697.0,0.49440001]
[1754530953969,5.70482269,3697.1,3697.0,0.49440001]
[1754530954195,10.13902269,3697.1,3697.0,0.93280001]
[1754530954373,24.49856467,3697.1,3697.0,1e-08]
[1754530954528,27.21889124,3697.1,3697.0,1e-08]
[1754530957228,9.11034926,3697.1,3697.0,1e-08]
[1754530957428,4.4332,3697.1,3697.0,0.93280001]
[1754530957645,7.4332,3697.1,3697.0,0.93280001]
[1754530957860,23.94756467,3697.1,3697.0,0.49440001]
[1754530958058,23.94756467,3697.1,3696.9,0.001]
[1754530958059,6.25489586,3697.0,3696.9,0.001]
[1754530958257,8.98355772,3697.0,3696.9,0.001]
[1754530958563,9.88385772,3697.0,3696.9,0.001]
[1754530959255,5.70489586,3697.0,3696.9,0.001]
[1754530959452,10.13709586,3697.0,3696.9,0.4954]
[1754530960078,23.94663784,3697.0,3696.9,0.4954]
[1754530960232,24.49663784,3697.0,3696.9,0.4954]
[1754530961095,24.49563784,3697.0,3696.9,0.9338]
[1754530961253,20.19963784,3697.0,3696.9,0.9338]
[1754530961458,10.55089586,3697.0,3696.9,0.9338]
[1754530961695,0.6852,3697.0,3696.9,0.9338]
[1754530961896,4.4312,3697.0,3696.9,0.9338]
[1754530962692,0.1352,3697.0,3696.9,0.9338]
[1754530963063,4.4312,3697.0,3696.9,0.9338]
[1754530963767,0.1352,3697.0,3696.9,0.9338]
[1754530963973,7.4312,3697.0,3696.9,0.9338]
[1754530964359,0.55,3697.3,3696.9,0.9338]
[1754530964360,0.1352,3697.3,3696.9,0.9338]
[1754530964699,3.0,3697.1,3697.0,0.9328]
[1754530965194,3.1352,3697.1,3697.0,0.9328]
[1754530965708,3.1352,3697.1,3697.0,0.4944]
[1754530966495,3.1352,3697.1,3696.9,0.001]
[1754530966659,4.294,3697.0,3696.9,0.4954]
[1754530967762,4.294,3697.0,3696.9,0.9338]
[1754530968580,3.1352,3697.1,3696.9,0.9338]
[1754530968785,4.293,3697.0,3696.9,0.001]
[1754530968991,0.1352,3697.1,3696.9,0.001]
[1754530969171,4.293,3697.0,3696.9,0.001]
[1754530969567,4.293,3697.0,3696.9,0.4394]
[1754530969979,4.293,3697.0,3696.9,0.8915]
[1754530971372,4.292,3697.0,3696.9,1.25126652]
[1754530971566,4.292,3697.0,3696.9,1.38646652]
[1754530972689,4.292,3697.0,3696.9,1.0267]
[1754530973888,0.1352,3697.4,3696.9,1.0267]
[1754530974219,3.0,3697.2,3697.0,0.8813]
[1754530974379,7.291,3697.1,3696.9,0.1362]
[1754530974714,3.0,3697.1,3696.9,0.1362]
[1754530974876,0.002,3697.5,3697.4,2.70460323]
[1754530975073,0.002,3697.5,3697.4,2.97506355]
[1754530975509,0.002,3697.5,3697.4,3.85636355]
[1754530976026,0.002,3697.5,3697.4,3.99156355]
[1754530979098,0.002,3697.5,3697.4,4.01860958]
[1754530979425,0.002,3697.5,3697.4,3.99156355]
[1754530980812,1e-08,3697.5,3697.4,3.99156355]
[1754530981199,1e-08,3697.5,3697.4,6.99156355]
[1754530983341,1e-08,3697.5,3697.4,11.27856355]
[1754530984252,1e-08,3697.5,3697.4,6.99156355]
[1754530984401,1e-08,3697.5,3697.4,11.27856355]
[1754530985046,1e-08,3697.5,3697.4,25.08810553]
[1754530986034,0.002,3698.1,3698.0,2.70416441]
[1754530986235,0.002,3698.1,3698.0,7.01720605]
[1754530986537,0.002,3698.1,3698.0,8.00666441]
[1754530987527,0.002,3698.1,3698.0,7.57746441]
[1754530987728,0.002,3698.1,3698.0,2.83936441]
[1754530987928,0.002,3698.1,3698.0,8.21895703]
[1754530988448,0.002,3698.1,3698.0,3.93395703]
[1754530988653,0.002,3698.1,3698.0,8.21895703]
[1754530988960,0.002,3698.1,3698.0,7.76685703]
[1754530989151,0.002,3698.1,3698.0,8.64815703]
[1754530989849,0.002,3698.1,3698.0,8.21895703]
[1754530993258,0.002,3698.1,3698.0,7.76685703]
[1754530993460,0.9152,3698.1,3698.0,7.76485703]
[1754530993859,0.4415,3698.1,3698.0,0.1352]
[1754530994058,0.9152,3698.1,3698.0,0.1352]
[1754530994259,0.9152,3698.1,3696.9,0.001]
[1754530994260,14.72474198,3698.1,3696.9,0.001]
[1754530994488,0.1352,3697.8,3697.3,2.7046181]
[1754530994647,0.1352,3697.8,3697.2,0.1352]
[1754530994648,0.1352,3697.8,3697.4,2.7045987]
[1754530994854,0.9132,3697.7,3697.2,2.8398942]
[1754530995053,0.1352,3697.8,3697.2,7.1218942]
[1754530995285,0.9132,3697.6,3697.2,4.4172]
[1754530995599,0.9132,3697.5,3697.2,4.4172]
[1754530995757,0.1352,3697.8,3697.2,4.4172]
[1754530995758,0.1352,3697.8,3697.2,7.12187742]
[1754530995958,0.9132,3697.7,3697.3,2.70467195]
[1754530996182,0.9132,3697.6,3697.2,2.8399402]
[1754530996382,0.1352,3697.8,3697.2,2.8399402]
[1754530996572,0.9132,3697.5,3697.2,2.8399402]
[1754530996886,0.9132,3697.4,3697.2,2.8399402]
[1754530997089,0.9132,3697.3,3697.0,4.281]
[1754530997295,0.1352,3697.5,3697.2,2.70474954]
[1754530997980,0.9132,3697.4,3697.1,2.70481165]
[1754530998195,0.9132,3697.3,3696.9,0.001]
[1754530998400,1.0484,3697.3,3696.9,0.001]
[1754530998606,0.9132,3697.2,3696.9,0.001]
[1754530998811,0.9132,3697.2,3696.9,2.70596501]
[1754530998979,0.1352,3697.3,3696.9,0.001]
[1754530999175,0.9132,3697.1,3696.9,2.70595258]
[1754530999370,0.9132,3697.0,3696.9,0.001]
[1754530999786,0.9132,3697.0,3696.9,2.70596902]
[1754531001089,0.1352,3697.3,3697.1,2.70482247]
[1754531001090,1.0707,3697.3,3697.1,2.70482247]
[1754531001413,1.0707,3697.3,3697.0,2.70488573]
[1754531001414,0.9355,3697.2,3697.0,2.70488573]
[1754531001614,0.4808,3697.1,3697.0,2.70488573]
[1754531002691,0.4808,3697.1,3696.9,2.70596595]
[1754531002891,0.9355,3697.0,3696.9,0.001]
[1754531004313,5.63421532,3697.0,3696.9,0.001]
[1754531004614,8.33911118,3697.0,3696.9,0.001]
[1754531005518,5.63421532,3697.0,3696.9,0.001]
[1754531005818,8.33911118,3697.0,3696.9,0.001]
[1754531006316,12.61911118,3697.0,3696.9,0.001]
[1754531006984,9.91421532,3697.0,3696.9,0.001]
[1754531007317,12.61911118,3697.0,3696.9,0.001]
[1754531007819,13.16911118,3697.0,3696.9,0.001]
[1754531008001,10.46421532,3697.0,3696.9,0.001]
[1754531008205,13.16911118,3697.0,3696.9,0.001]
[1754531010310,12.9455,3697.0,3696.9,0.001]
[1754531010512,5.3497,3697.0,3696.9,0.001]
[1754531013623,0.1352,3697.0,3696.9,0.001]
[1754531013782,2.70455832,3697.5,3696.9,0.001]
[1754531013783,3.64003645,3697.5,3696.9,0.4932]
[1754531014120,0.1352,3697.2,3696.9,0.4932]
[1754531014310,0.1352,3697.2,3696.9,0.001]
[1754531014825,4.277,3697.1,3696.9,0.001]
[1754531015024,0.1352,3697.0,3696.9,0.001]
[1754531015906,4.4122,3697.0,3696.9,3.19816902]
[1754531016110,4.4122,3697.0,3696.9,3.56190592]
[1754531016695,4.277,3697.1,3697.0,2.70489586]
[1754531017028,4.4112,3697.2,3697.0,2.70489586]
[1754531017226,4.4112,3697.2,3697.1,2.70482269]
[1754531017411,4.276,3697.2,3697.1,0.4922]
[1754531017723,4.276,3697.2,3697.1,3.19702269]
[1754531018602,4.276,3697.2,3697.1,0.4922]
[1754531018806,0.1352,3697.3,3697.1,0.4922]
[1754531019000,4.4112,3697.3,3697.0,2.70489379]
[1754531019201,4.4112,3697.3,3697.0,3.19709379]
[1754531019728,4.4112,3697.3,3696.9,3.06969062]
[1754531020029,0.9355,3697.2,3696.9,3.06969062]
[1754531020331,0.9355,3697.2,3697.0,2.70488158]
[1754531020528,0.1352,3697.3,3697.0,0.59099295]
[1754531020698,0.1352,3697.3,3697.0,3.78807335]
[1754531021033,0.616,3697.3,3697.0,3.29587335]
[1754531021226,1.0707,3697.3,3697.0,3.29587335]
[1754531021420,0.1352,3697.3,3697.1,2.7048088]
[1754531021930,0.1352,3697.3,3697.0,2.70487934]
[1754531022139,0.1352,3697.3,3696.9,2.7059535]
[1754531022323,1.0707,3697.3,3696.9,2.7059535]
[1754531023010,0.9355,3697.2,3696.9,2.7059535]
[1754531023220,0.9355,3697.1,3696.9,2.7059535]
[1754531024138,17.74504198,3697.0,3696.9,0.001]
[1754531024841,20.44993784,3697.0,3696.9,0.001]
[1754531025041,20.58513784,3697.0,3696.9,0.001]
[1754531027523,17.88024198,3697.0,3696.9,0.001]
[1754531027716,4.0707,3697.0,3696.9,0.001]
[1754531028121,7.273,3697.0,3696.9,0.001]
[1754531028348,7.273,3697.0,3696.9,0.4932]
[1754531028715,7.273,3697.0,3696.9,0.001]
[1754531029546,7.273,3697.0,3696.9,0.4932]
[1754531029736,4.272,3697.0,3696.9,3.57543764]
[1754531030043,4.272,3697.1,3696.9,1.33686862]
[1754531030245,4.272,3697.1,3697.0,2.70489586]
[1754531030410,4.272,3697.1,3697.0,3.16039586]
[1754531030812,0.1352,3697.3,3697.1,2.70481496]
[1754531031006,4.272,3697.2,3697.1,3.16031496]
[1754531031734,4.272,3697.2,3697.1,0.4555]
[1754531032133,5.1579,3697.2,3696.9,0.001]
[1754531032310,0.4296,3697.1,3696.9,0.001]
[1754531032506,0.8859,3697.1,3696.9,0.001]
[1754531032713,0.8859,3697.0,3696.9,0.001]
[1754531038853,0.4296,3697.0,3696.9,0.001]
[1754531039042,0.1352,3697.1,3696.9,0.001]
[1754531039346,4.4032,3697.1,3696.9,0.001]
[1754531040342,4.4032,3697.1,3696.9,2.70595071]
[1754531040541,13.80954198,3697.9,3697.0,1.23804507]
[1754531040542,4.268,3697.2,3697.0,1.23804507]
[1754531040744,4.268,3697.2,3697.1,2.70482269]
[1754531041040,4.268,3697.2,3697.1,3.16032269]
[1754531041618,4.268,3697.2,3697.1,0.4555]
[1754531041834,4.268,3697.2,3697.0,2.70488062]
[1754531042742,4.268,3697.2,3696.9,0.001]
[1754531042948,0.8859,3697.1,3696.9,0.001]
[1754531043460,0.5648,3697.0,3696.9,0.001]
[1754531043655,1.0211,3697.0,3696.9,0.001]
[1754531045362,0.1352,3697.0,3696.9,0.001]
[1754531048360,3.0,3697.2,3697.1,2.70480538]
[1754531048544,3.0,3697.2,3697.1,0.4555]
[1754531048859,3.0,3697.2,3697.1,3.16032269]
[1754531049081,3.1352,3697.3,3697.1,0.4555]
[1754531049475,3.1352,3697.3,3696.9,2.70595518]
[1754531049833,0.8859,3697.2,3696.9,0.001]
[1754531050369,0.8859,3697.1,3696.9,0.001]
[1754531050740,0.1352,3697.0,3696.9,0.001]
[1754531051150,1.0211,3697.0,3696.9,0.001]
[1754531058361,16.22212228,3697.0,3696.9,0.001]
[1754531058749,18.92701814,3697.0,3696.9,0.001]
[1754531058958,16.22212228,3697.0,3696.9,0.001]
[1754531060282,19.22212228,3697.0,3696.9,0.001]
[1754531062019,5.4125803,3697.0,3696.9,0.001]
[1754531062285,3.5735,3697.0,3696.9,0.001]
[1754531062491,6.77399586,3697.0,3696.9,0.001]
[1754531062678,4.0691,3697.0,3696.9,0.001]
[1754531063661,6.77399586,3697.0,3696.9,0.001]
[1754531064903,4.0691,3697.0,3696.9,0.001]
[1754531065108,9.10170475,3697.0,3696.9,0.001]
[1754531065270,9.65170475,3697.0,3696.9,0.001]
[1754531081853,16.83170475,3697.0,3696.9,0.001]
[1754531086356,16.94014475,3697.0,3696.9,0.001]
[1754531088933,34.06678673,3697.0,3696.9,0.001]
[1754531089131,33.95834673,3697.0,3696.9,0.001]
[1754531089439,10.3152,3697.0,3696.9,0.482]
[1754531089648,14.5652,3697.0,3696.9,0.9254]
[1754531090265,15.1152,3697.0,3696.9,0.9254]
[1754531092456,14.5652,3697.0,3696.9,0.9254]
[1754531092930,10.3152,3697.0,3696.9,0.9254]
[1754531093126,14.5642,3697.0,3696.9,0.9254]
[1754531093973,4.248,3697.0,3696.9,0.9254]
[1754531095068,4.248,3697.0,3696.9,0.4627]
[1754531095069,7.248,3697.0,3696.9,0.4627]
[1754531096361,7.248,3697.0,3696.9,0.9095]